bitfinex/quotes_ETHUSD_20240816
["timestamp","ask_amount","ask_price","bid_price","bid_amount"]
[1723807422249,7.6122,2627.4,2626.9,22.37638708]
[1723807422672,3.80605,2627.4,2626.9,22.37638708]
[1723807423049,3.8062,2627.3,2626.9,22.37638708]
[1723807423245,3.8062,2627.3,2626.9,19.78986553]
[1723807423644,3.80605,2627.4,2626.9,19.78986553]
[1723807424045,3.8062,2627.3,2626.9,19.78986553]
[1723807424247,3.8062,2627.3,2626.8,6.07521]
[1723807426064,3.8062,2627.3,2626.8,2.2683]
[1723807426271,3.80633,2627.2,2626.8,2.2683]
[1723807428106,3.80621,2627.3,2626.8,6.07517]
[1723807429078,3.80621,2627.3,2626.9,0.05069332]
[1723807429392,7.61247,2627.3,2626.9,0.05069332]
[1723807430074,3.80634,2627.2,2626.9,0.05069332]
[1723807430476,3.80621,2627.3,2626.9,0.05069332]
[1723807431492,3.80625,2627.3,2626.9,0.05069332]
[1723807432100,7.61252,2627.3,2626.9,0.05069332]
[1723807432299,7.61254,2627.3,2626.9,0.05069332]
[1723807432506,3.80625,2627.3,2626.9,0.05069332]
[1723807433242,7.61258,2627.3,2626.9,0.05069332]
[1723807433441,3.80625,2627.3,2626.9,0.05069332]
[1723807433737,3.80605,2627.4,2626.9,0.05069332]
[1723807434894,2.39512674,2627.9,2627.1,3.8064]
[1723807435137,3.80562,2627.7,2627.1,3.80647]
[1723807435281,3.80562,2627.7,2627.2,2.31626849]
[1723807435614,7.61135,2627.7,2627.2,2.31626849]
[1723807435916,3.80576,2627.6,2627.2,2.31626849]
[1723807436323,3.80618,2627.3,2627.2,0.05076849]
[1723807436822,3.80637,2627.2,2627.0,2.2655]
[1723807438286,3.80606,2627.4,2627.0,2.2655]
[1723807438528,3.8062,2627.3,2627.0,2.2655]
[1723807439692,3.80606,2627.4,2627.0,2.2655]
[1723807439693,3.80634,2627.2,2627.0,2.2655]
[1723807439892,3.80606,2627.4,2627.0,2.2655]
[1723807440137,4.74474909,2628.1,2627.1,2.3871]
[1723807440291,3.80561,2627.7,2627.2,2.3871]
[1723807440632,3.80576,2627.6,2627.2,2.3871]
[1723807440832,3.80561,2627.7,2627.2,2.3871]
[1723807441052,7.61133,2627.7,2627.2,2.3871]
[1723807441342,3.80611,2627.4,2627.2,2.3871]
[1723807441621,7.61173,2627.6,2627.2,2.3871]
[1723807441824,7.61172,2627.6,2627.2,2.3871]
[1723807442033,3.80567,2627.7,2627.2,2.3871]
[1723807442204,3.80559,2627.8,2627.2,2.62581]
[1723807442397,6.05889,2628.1,2627.2,2.62581]
[1723807442398,3.80561,2627.7,2627.2,2.62581]
[1723807442604,3.80583,2627.6,2627.2,2.3871]
[1723807443842,3.80561,2627.7,2627.2,2.3871]
[1723807444049,3.80604,2627.4,2627.3,0.05074235]
[1723807444434,3.80604,2627.4,2627.2,2.3871]
[1723807444636,3.80604,2627.4,2627.3,0.05075215]
[1723807445033,3.80604,2627.4,2627.2,2.3871]
[1723807445240,3.80604,2627.4,2627.3,0.05075215]
[1723807445759,3.80604,2627.4,2627.2,2.3871]
[1723807445915,3.80604,2627.4,2627.3,0.05075215]
[1723807446246,3.80604,2627.4,2626.9,3.80676]
[1723807446462,3.80604,2627.4,2627.3,0.05075215]
[1723807446748,3.80604,2627.4,2626.9,6.17656]
[1723807446949,3.80604,2627.4,2627.3,0.05075215]
[1723807447107,3.80604,2627.4,2626.9,6.17656]
[1723807447435,3.8059,2627.5,2626.9,6.17656]
[1723807447636,3.8059,2627.5,2627.1,2.4642]
[1723807448046,3.8057,2627.7,2627.2,0.05079136]
[1723807448254,3.8057,2627.7,2627.3,2.4642]
[1723807448549,3.8057,2627.7,2627.3,3.09633814]
[1723807449046,3.80582,2627.6,2627.4,0.05076849]
[1723807449224,3.80589,2627.5,2627.4,0.05076849]
[1723807449419,4.186479,2627.5,2627.4,0.05076849]
[1723807449614,3.80608,2627.4,2627.1,2.2762]
[1723807450248,3.80589,2627.5,2627.1,2.2762]
[1723807450776,3.8057,2627.7,2627.1,6.08257]
[1723807451141,3.8057,2627.7,2627.0,23.59645553]
[1723807451142,3.80539,2627.9,2627.3,6.2073]
[1723807451385,3.80526,2628.0,2627.5,2.4012]
[1723807451543,3.80532,2627.9,2627.5,2.64132]
[1723807451743,3.80466,2628.4,2627.5,2.64132]
[1723807451744,0.1296114,2628.5,2627.8,2.4012]
[1723807451939,0.1296114,2628.5,2627.9,19.78986553]
[1723807452259,0.1296114,2628.5,2628.0,6.26586]
[1723807452441,0.1296114,2628.5,2628.2,3.80484]
[1723807452672,0.1296114,2628.5,2628.3,2.4608]
[1723807453356,0.1296114,2628.5,2628.3,6.26553]
[1723807453540,0.1296114,2628.5,2628.3,3.80473]
[1723807453884,0.1296114,2628.5,2628.4,2.4608]
[1723807454281,0.1296114,2628.5,2628.4,6.26539]
[1723807454496,0.1296114,2628.5,2628.4,3.087339]
[1723807454802,0.1296114,2628.5,2628.4,6.26539]
[1723807455469,0.1296114,2628.5,2628.4,2.4608]
[1723807456040,0.1296114,2628.5,2628.4,6.26539]
[1723807456651,0.1296114,2628.5,2628.4,2.4608]
[1723807458975,0.1296114,2628.5,2628.4,2.51105898]
[1723807459196,0.1296114,2628.5,2628.4,4.87070453]
[1723807459687,0.1296114,2628.5,2628.4,2.51105898]
[1723807459873,3.9340614,2628.5,2628.4,0.05025898]
[1723807460060,7.7385114,2628.5,2628.4,0.05025898]
[1723807460498,17.7518114,2628.5,2628.4,0.05025898]
[1723807460725,20.07699254,2628.5,2628.4,0.05025898]
[1723807460898,20.07699254,2628.5,2627.2,2.317]
[1723807460899,3.80478,2628.3,2627.2,2.317]
[1723807461120,3.80606,2627.4,2627.2,2.317]
[1723807461411,3.80568,2627.7,2627.3,0.05025245]
[1723807461569,7.61142,2627.7,2627.3,0.05025245]
[1723807461762,3.80568,2627.7,2627.2,2.317]
[1723807462068,3.80541,2627.9,2627.3,6.11966582]
[1723807462274,3.80542,2627.9,2627.3,6.11966582]
[1723807462519,3.80547,2627.8,2627.3,6.11966582]
[1723807462682,3.80547,2627.8,2627.3,3.3673278]
[1723807462878,7.61087,2627.9,2627.3,3.3673278]
[1723807463186,3.80476,2628.3,2627.5,3.80588]
[1723807463187,3.8051,2628.1,2627.5,3.80588]
[1723807463496,3.80504,2628.1,2627.7,2.4409]
[1723807464076,3.80504,2628.1,2627.8,0.05008582]
[1723807464399,0.1296114,2628.5,2627.7,2.4409]
[1723807464400,3.80531,2627.9,2627.7,2.4409]
[1723807464598,3.80561,2627.7,2627.4,2.4409]
[1723807465502,3.80589,2627.5,2627.4,2.4409]
[1723807466064,3.80561,2627.7,2627.4,2.4409]
[1723807466301,0.380561,2627.7,2627.1,2.2612]
[1723807466525,3.80597,2627.5,2627.1,2.2612]
[1723807467020,3.80607,2627.4,2627.1,2.2612]
[1723807467190,3.80592,2627.5,2627.1,2.2612]
[1723807467394,3.8040162,2627.5,2627.1,2.2612]
[1723807467812,3.8040162,2627.5,2627.1,4.84697455]
[1723807468481,7.61145,2627.7,2627.1,4.84697455]
[1723807468680,3.8057,2627.7,2627.1,4.84697455]
[1723807468886,3.8057,2627.7,2627.2,2.3355]
[1723807469088,3.8057,2627.7,2627.3,0.56926033]
[1723807469738,3.80512,2628.1,2627.5,2.3355]
[1723807469896,3.8053,2628.0,2627.5,2.3355]
[1723807470580,3.80512,2628.1,2627.5,2.3355]
[1723807470581,3.80533,2627.9,2627.5,2.3355]
[1723807471298,3.80533,2627.9,2627.5,4.92127455]
[1723807471627,3.80548,2627.8,2627.5,4.92127455]
[1723807471933,3.80548,2627.8,2627.5,2.3355]
[1723807472225,3.80575,2627.6,2627.5,2.3355]
[1723807472823,3.80589,2627.5,2627.4,19.78986553]
[1723807473125,3.80589,2627.5,2627.2,2.4732]
[1723807473691,3.80604,2627.4,2627.2,2.4732]
[1723807474112,7.61165,2627.6,2627.3,0.05007932]
[1723807474421,7.61165,2627.6,2627.2,2.4732]
[1723807474661,3.8059,2627.5,2627.3,0.05007932]
[1723807474808,3.80576,2627.6,2627.3,0.05007932]
[1723807475013,3.80576,2627.6,2627.2,2.4732]
[1723807475014,3.80604,2627.4,2627.2,2.4732]
[1723807475235,3.80604,2627.4,2627.3,0.05007932]
[1723807475445,3.80576,2627.6,2627.3,0.05007932]
[1723807475650,3.80556,2627.8,2627.3,0.25232793]
[1723807475947,3.80498,2628.2,2627.7,2.3183]
[1723807476149,3.80498,2628.2,2627.7,2.55013]
[1723807476445,3.9340814,2628.5,2627.8,6.19551932]
[1723807476446,3.80467,2628.4,2627.8,6.19551932]
[1723807476615,3.80467,2628.4,2627.8,2.39007932]
[1723807476811,3.80489,2628.2,2627.8,2.39007932]
[1723807477148,3.80489,2628.2,2627.8,3.03283525]
[1723807477921,3.80489,2628.2,2627.8,2.38867588]
[1723807478446,3.80474,2628.3,2627.8,2.38867588]
[1723807478608,3.80488,2628.2,2627.8,2.38867588]
[1723807479249,7.60935,2628.4,2627.8,7.21727047]
[1723807479454,7.60936,2628.4,2627.8,7.21727047]
[1723807479670,7.60934,2628.4,2627.8,7.21727047]
[1723807479825,3.80466,2628.4,2627.8,7.21727047]
[1723807480149,7.60934,2628.4,2627.8,7.21727047]
[1723807480452,3.80475,2628.3,2627.8,3.41185047]
[1723807480949,3.80466,2628.4,2627.8,3.41185047]
[1723807480950,3.80488,2628.2,2627.8,3.41185047]
[1723807481113,3.80488,2628.2,2627.8,2.38867588]
[1723807482457,3.80485,2628.3,2627.8,2.38867588]
[1723807482658,3.80498,2628.2,2627.8,2.38867588]
[1723807483286,3.80485,2628.3,2627.8,2.38867588]
[1723807483287,3.80519,2628.0,2627.8,2.38867588]
[1723807483481,4.185829,2627.9,2627.8,0.05007932]
[1723807483697,8.06729687,2627.9,2627.8,0.05007932]
[1723807483995,8.06729687,2627.9,2627.0,2.3207]
[1723807483996,3.80587,2627.6,2627.0,2.3207]
[1723807484489,3.80591,2627.5,2627.1,0.04849526]
[1723807484894,6.14739,2628.7,2627.2,2.3207]
[1723807485092,6.14739,2628.7,2627.5,6.12651]
[1723807485093,3.80517,2628.0,2627.5,6.12651]
[1723807485313,7.61044,2628.0,2627.5,2.3207]
[1723807485605,7.61044,2628.0,2627.6,0.04849526]
[1723807485606,3.80517,2628.0,2627.6,0.04849526]
[1723807487519,4.41673093,2628.0,2627.6,0.04849526]
[1723807487681,3.80535,2627.9,2627.6,0.04849526]
[1723807489628,3.80557,2627.8,2627.6,0.04849526]
[1723807489987,3.80535,2627.9,2627.6,0.04849526]
[1723807490292,3.80512,2628.1,2627.6,0.04849526]
[1723807491391,3.80511,2628.1,2627.6,0.04849526]
[1723807491616,3.80511,2628.1,2627.7,2.2914]
[1723807491777,3.80511,2628.1,2627.8,0.0486161]
[1723807491985,3.80511,2628.1,2627.7,2.2914]
[1723807492314,3.80511,2628.1,2627.8,0.04860957]
[1723807492728,3.80511,2628.1,2627.7,2.2914]
[1723807492929,3.80511,2628.1,2627.9,0.04860957]
[1723807493094,3.80511,2628.1,2627.7,2.2914]
[1723807493426,3.80511,2628.1,2627.8,0.04860957]
[1723807493612,3.80511,2628.1,2627.7,2.2914]
[1723807493817,3.80482,2628.3,2627.8,0.04860957]
[1723807493988,3.80482,2628.3,2627.7,2.2914]
[1723807494191,3.80518,2628.0,2627.8,0.04860957]
[1723807494416,3.80518,2628.0,2627.7,2.2914]
[1723807494617,3.80518,2628.0,2627.8,0.04860957]
[1723807494832,3.80518,2628.0,2627.7,2.2914]
[1723807495030,3.80518,2628.0,2627.8,0.04860957]
[1723807495235,7.61029,2628.1,2627.7,2.2914]
[1723807495448,3.80513,2628.1,2627.8,0.04860957]
[1723807495733,3.80511,2628.1,2627.7,2.2914]
[1723807495936,3.80511,2628.1,2627.9,0.04860957]
[1723807496235,3.80511,2628.1,2628.0,0.04860957]
[1723807496492,7.61024,2628.1,2627.7,2.2914]
[1723807496615,7.61024,2628.1,2628.0,0.04860957]
[1723807496810,8.371264,2628.1,2627.7,2.2914]
[1723807497033,8.371264,2628.1,2627.8,0.04860957]
[1723807497228,8.371264,2628.1,2627.7,2.2914]
[1723807497562,3.9341514,2628.5,2627.9,3.80518]
[1723807497722,3.8046,2628.4,2628.0,2.2884]
[1723807497924,3.80475,2628.3,2628.0,2.33706837]
[1723807498102,8.13215654,2628.5,2628.0,2.33706837]
[1723807498307,3.80465,2628.4,2628.0,2.33706837]
[1723807498839,8.04212765,2628.4,2628.0,2.33706837]
[1723807499012,4.23741765,2628.4,2628.0,2.33706837]
[1723807499225,8.04208765,2628.4,2628.0,2.33706837]
[1723807499407,3.80496,2628.2,2628.0,2.33706837]
[1723807499606,3.80503,2628.1,2628.0,2.33706837]
[1723807500442,3.80503,2628.1,2628.0,0.04866837]
[1723807500443,11.41509,2628.1,2628.0,0.04866837]
[1723807500900,7.61163,2627.6,2627.2,2.2672]
[1723807501105,3.80577,2627.6,2627.2,2.2672]
[1723807501302,3.80557,2627.8,2627.3,0.04692099]
[1723807501303,3.80604,2627.4,2627.3,0.04692099]
[1723807501549,3.80589,2627.5,2627.3,0.04692099]
[1723807501713,3.8057,2627.7,2627.2,2.2672]
[1723807501914,3.8055,2627.8,2627.4,0.04692099]
[1723807502157,3.8055,2627.8,2627.3,2.2756]
[1723807502335,3.8055,2627.8,2627.5,0.04692099]
[1723807502523,3.8055,2627.8,2627.3,6.369238]
[1723807503147,3.8055,2627.8,2627.4,0.04692099]
[1723807503446,7.61104,2627.8,2627.4,0.04692099]
[1723807503748,7.61105,2627.8,2627.4,0.04692099]
[1723807503950,3.8055,2627.8,2627.4,0.04692099]
[1723807505940,3.8055,2627.8,2627.5,2.2657]
[1723807506761,7.6111,2627.8,2627.6,0.04692099]
[1723807506941,7.99165,2627.8,2627.6,0.04692099]
[1723807507136,3.8056,2627.7,2627.6,0.04692099]
[1723807507339,7.6112,2627.7,2627.6,0.04692099]
[1723807508146,0.38055,2627.8,2627.2,22.05556553]
[1723807508147,3.80605,2627.4,2627.2,22.05556553]
[1723807508462,3.80618,2627.3,2627.2,19.78986553]
[1723807509767,7.61236,2627.3,2627.2,19.78986553]
[1723807510068,7.61236,2627.3,2626.6,2.3114]
[1723807510069,3.80677,2626.9,2626.6,2.3114]
[1723807510224,3.80616,2627.4,2626.9,2.2879]
[1723807510430,3.80556,2627.8,2627.1,2.2879]
[1723807510668,3.80556,2627.8,2627.2,6.09413]
[1723807511030,3.80506,2628.1,2627.2,2.2879]
[1723807511348,4.66219177,2628.4,2627.2,6.09415]
[1723807511349,3.80547,2627.8,2627.2,6.09415]
[1723807511758,3.80533,2627.9,2627.3,3.80617]
[1723807511971,3.80512,2628.1,2627.5,2.2879]
[1723807512133,0.1296114,2628.5,2627.7,2.2879]
[1723807512333,0.1296114,2628.5,2628.1,2.2879]
[1723807512762,3.9341414,2628.5,2628.1,2.2879]
[1723807512939,3.80477,2628.3,2628.1,2.2879]
[1723807513261,0.1296114,2628.5,2628.1,2.2879]
[1723807513439,3.80468,2628.4,2628.1,2.2879]
[1723807514066,3.80474,2628.3,2628.1,2.2879]
[1723807514253,4.32757754,2628.5,2628.1,2.2879]
[1723807514449,8.13212754,2628.5,2628.1,2.2879]
[1723807514650,3.9341614,2628.5,2628.1,2.2879]
[1723807514866,0.1296114,2628.5,2628.1,2.2879]
[1723807515268,3.80546,2627.8,2627.7,2.2744]
[1723807515497,3.8054,2627.9,2627.7,2.2744]
[1723807516148,3.80528,2628.0,2627.7,2.2744]
[1723807516410,3.80497,2628.2,2627.7,2.50184]
[1723807517241,3.80524,2628.0,2627.7,2.2744]
[1723807517944,3.80497,2628.2,2627.7,2.2744]
[1723807518148,7.60998,2628.2,2627.7,2.2744]
[1723807518477,3.80497,2628.2,2627.7,2.2744]
[1723807518694,3.80497,2628.2,2627.7,2.50184]
[1723807518980,3.80497,2628.2,2627.7,2.2744]
[1723807519217,7.61062,2627.9,2627.8,0.04580631]
[1723807519598,3.80546,2627.8,2627.7,2.2744]
[1723807520139,3.80546,2627.8,2627.2,3.80628]
[1723807520140,3.80578,2627.6,2627.4,2.3632]
[1723807520333,3.80589,2627.5,2627.4,2.3632]
[1723807520682,3.80578,2627.6,2627.4,2.3632]
[1723807521983,3.80556,2627.8,2627.4,2.3632]
[1723807522185,3.80461,2628.4,2627.4,2.3632]
[1723807522186,0.1296114,2628.5,2627.4,2.3632]
[1723807522495,0.1296114,2628.5,2627.7,3.80559]
[1723807522496,7.60969,2628.3,2627.7,3.80559]
[1723807522839,3.80483,2628.3,2627.8,2.4035]
[1723807522995,3.80482,2628.3,2627.8,2.4035]
[1723807523197,3.9341614,2628.5,2627.9,2.4035]
[1723807523397,3.9341614,2628.5,2627.9,6.2087]
[1723807523797,3.9341314,2628.5,2627.9,2.4035]
[1723807524013,3.80483,2628.3,2627.9,2.4035]
[1723807524394,0.39341314,2628.4,2627.9,2.4035]
[1723807524395,4.19810314,2628.4,2627.9,2.4035]
[1723807524749,3.80481,2628.3,2627.9,2.4035]
[1723807524947,7.60964,2628.3,2627.9,2.4035]
[1723807525430,3.80481,2628.3,2627.9,2.4035]
[1723807528516,7.7387214,2628.5,2627.9,2.4035]
[1723807528724,3.9341514,2628.5,2628.0,2.2808]
[1723807528961,3.9341514,2628.5,2628.2,6.08561]
[1723807528962,0.1296114,2628.5,2628.2,6.08561]
[1723807529114,0.1296114,2628.5,2628.3,0.99667308]
[1723807529450,0.1296114,2628.5,2628.2,2.2808]
[1723807530544,0.1296114,2628.5,2628.3,35.0]
[1723807530907,0.1296114,2628.5,2628.2,2.2808]
[1723807531647,0.1296114,2628.5,2628.2,6.08567]
[1723807532036,0.1296114,2628.5,2628.3,2.4656]
[1723807534119,0.1296114,2628.5,2628.4,0.04568218]
[1723807534120,7.7386114,2628.5,2628.4,0.04568218]
[1723807534259,3.9340614,2628.5,2628.4,0.04568218]
[1723807534559,0.1296114,2628.5,2628.4,0.04568218]
[1723807536058,3.9340614,2628.5,2628.4,0.04568218]
[1723807536560,0.1296114,2628.5,2628.4,0.04568218]
[1723807538647,3.9340614,2628.5,2628.4,0.04568218]
[1723807540532,0.1296114,2628.5,2628.4,0.04568218]
[1723807541161,11.25990454,2628.5,2628.4,0.04568218]
[1723807541363,15.06435454,2628.5,2628.4,0.04568218]
[1723807541563,3.80528,2628.0,2627.8,2.2962]
[1723807541769,3.80525,2628.0,2627.8,2.2962]
[1723807541942,3.80531,2627.9,2627.8,2.2962]
[1723807542147,7.61062,2627.9,2627.8,2.2962]
[1723807542357,7.61062,2627.9,2627.3,7.45]
[1723807542358,3.80557,2627.8,2627.4,2.3192]
[1723807542558,3.80557,2627.8,2627.4,5.04318655]
[1723807543346,3.80531,2627.9,2627.4,2.3192]
[1723807543347,3.80561,2627.7,2627.4,2.3192]
[1723807543553,3.80581,2627.6,2627.4,2.3192]
[1723807543752,3.80552,2627.8,2627.4,2.3192]
[1723807544262,3.80565,2627.7,2627.4,2.3192]
[1723807544457,3.80577,2627.6,2627.4,2.3192]
[1723807545838,3.80565,2627.7,2627.4,2.3192]
[1723807547173,3.8054,2627.9,2627.4,2.3192]
[1723807547372,3.8054,2627.9,2627.5,0.23192]
[1723807547552,3.80548,2627.8,2627.5,0.23192]
[1723807547738,7.61085,2627.9,2627.5,0.23192]
[1723807548135,3.8054,2627.9,2627.5,0.23192]
[1723807548353,3.8054,2627.9,2627.6,2.2905]
[1723807548547,3.8054,2627.9,2627.6,2.542742]
[1723807548949,7.6108,2627.9,2627.6,2.542742]
[1723807549164,7.61085,2627.9,2627.7,0.04255187]
[1723807549368,3.80546,2627.8,2627.7,0.04255187]
[1723807551319,7.61092,2627.8,2627.7,0.04255187]
[1723807552094,3.80583,2627.6,2627.3,2.2905]
[1723807552400,3.80583,2627.6,2627.3,22.08036553]
[1723807552907,7.61166,2627.6,2627.3,22.08036553]
[1723807553099,3.8059,2627.5,2627.3,22.08036553]
[1723807554015,3.80557,2627.8,2627.3,22.08036553]
[1723807554167,3.80577,2627.6,2627.3,22.08036553]
[1723807554373,3.80577,2627.6,2627.4,2.20803655]
[1723807555597,7.61162,2627.6,2627.4,2.20803655]
[1723807555804,7.61162,2627.6,2627.3,22.08036553]
[1723807556115,3.80591,2627.5,2627.3,22.08036553]
[1723807556270,3.80577,2627.6,2627.3,22.08036553]
[1723807557142,3.80556,2627.8,2627.3,22.08036553]
[1723807557354,6.27686,2628.3,2627.4,2.33]
[1723807557509,3.80548,2627.8,2627.4,4.53803655]
[1723807557709,7.61105,2627.8,2627.4,4.53803655]
[1723807557930,3.80561,2627.7,2627.5,0.94699833]
[1723807558135,3.80561,2627.7,2627.4,2.33]
[1723807559531,3.80548,2627.8,2627.4,2.33]
[1723807559532,3.80547,2627.8,2627.4,2.33]
[1723807560582,3.80526,2628.0,2627.4,2.33]
[1723807560721,3.80476,2628.3,2627.7,2.33]
[1723807560919,3.80476,2628.3,2627.9,2.33]
[1723807561412,3.9341414,2628.5,2628.0,2.325]
[1723807561615,0.1296114,2628.5,2628.1,2.325]
[1723807561836,0.1296114,2628.5,2628.3,2.325]
[1723807562214,3.9340914,2628.5,2628.3,2.325]
[1723807562630,3.9340914,2628.5,2627.4,1.18064399]
[1723807562631,3.8049,2628.2,2627.9,2.3507]
[1723807562913,3.80517,2628.0,2627.9,2.3507]
[1723807563654,3.80512,2628.1,2627.5,2.3507]
[1723807563948,3.80512,2628.1,2627.6,6.772105]
[1723807563949,7.61026,2628.1,2627.6,6.772105]
[1723807564144,3.80512,2628.1,2627.6,3.00918798]
[1723807564363,3.8051,2628.1,2627.6,3.00918798]
[1723807564533,7.61026,2628.1,2627.6,3.00918798]
[1723807564739,3.8051,2628.1,2627.6,3.00918798]
[1723807564917,7.61023,2628.1,2627.6,3.00918798]
[1723807565122,3.8051,2628.1,2627.6,3.00918798]
[1723807565659,7.61024,2628.1,2627.6,3.00918798]
[1723807566158,3.8051,2628.1,2627.6,3.00918798]
[1723807566733,3.80527,2628.0,2627.6,2.39352298]
[1723807566933,3.8051,2628.1,2627.6,2.39352298]
[1723807567538,3.80555,2627.8,2627.6,2.39352298]
[1723807569038,3.80527,2628.0,2627.6,2.63287528]
[1723807569239,3.80525,2628.0,2627.6,2.63287528]
[1723807569586,3.80503,2628.1,2627.7,2.3036]
[1723807569764,3.80498,2628.2,2627.7,2.3036]
[1723807570073,3.80498,2628.2,2627.8,0.04273802]
[1723807570251,3.80524,2628.0,2627.8,0.04273802]
[1723807570426,3.80524,2628.0,2627.7,2.3036]
[1723807570634,3.80524,2628.0,2627.9,0.04273802]
[1723807571148,3.80524,2628.0,2627.7,2.3036]
[1723807571468,3.80503,2628.1,2627.9,0.04273802]
[1723807571627,3.80503,2628.1,2627.7,2.3036]
[1723807571628,3.80482,2628.3,2627.7,6.10909]
[1723807571853,3.80482,2628.3,2628.0,0.04273802]
[1723807572267,3.80482,2628.3,2627.8,0.25429523]
[1723807572759,3.80489,2628.2,2627.9,0.04273802]
[1723807572956,3.80469,2628.4,2627.9,0.04273802]
[1723807573258,3.80476,2628.3,2628.0,2.4499]
[1723807573660,3.80492,2628.2,2628.0,2.4499]
[1723807573885,3.80492,2628.2,2628.1,0.04273802]
[1723807575091,3.80492,2628.2,2627.8,2.3604]
[1723807575488,3.80517,2628.0,2627.9,0.04273802]
[1723807576482,7.61034,2628.0,2627.9,0.04273802]
[1723807576715,3.8056,2627.7,2627.6,2.2916]
[1723807576884,7.6112,2627.7,2627.6,2.2916]
[1723807577082,7.6112,2627.7,2627.4,19.78986553]
[1723807577083,3.80589,2627.5,2627.4,19.78986553]
[1723807577972,3.80555,2627.8,2627.5,2.2974]
[1723807578175,3.80555,2627.8,2627.6,2.20872655]
[1723807578403,3.80555,2627.8,2627.5,2.2974]
[1723807579268,3.80555,2627.8,2627.6,0.04294713]
[1723807579470,3.80538,2627.9,2627.6,0.04294713]
[1723807579798,7.6108,2627.9,2627.6,0.04294713]
[1723807579998,3.80538,2627.9,2627.6,0.04294713]
[1723807580168,7.61078,2627.9,2627.6,0.04294713]
[1723807580370,3.80538,2627.9,2627.6,0.04294713]
[1723807581000,3.80539,2627.9,2627.6,0.04294713]
[1723807581389,7.61079,2627.9,2627.6,0.04294713]
[1723807581583,3.80539,2627.9,2627.6,0.04294713]
[1723807581795,3.80539,2627.9,2627.6,2.6365714]
[1723807581994,3.80513,2628.1,2627.7,2.3831]
[1723807582523,3.80489,2628.2,2627.8,0.04287525]
[1723807582817,3.80489,2628.2,2627.8,2.60214208]
[1723807583121,3.80489,2628.2,2627.9,2.35194912]
[1723807583497,3.80461,2628.4,2627.9,2.35194912]
[1723807583701,0.1296114,2628.5,2628.1,2.4187]
[1723807583895,0.1296114,2628.5,2628.3,2.4187]
[1723807584300,0.1296114,2628.5,2628.4,0.04280665]
[1723807584684,0.1296114,2628.5,2628.4,2.46150665]
[1723807587895,0.1296114,2628.5,2628.4,22.25137218]
[1723807588138,0.1296114,2628.5,2628.4,24.85351426]
[1723807589616,0.1277087,2628.5,2628.4,24.85351426]
[1723807590838,3.7317987,2628.8,2628.4,24.85351426]
[1723807591603,3.80417,2628.7,2628.4,24.85351426]
[1723807591804,3.80445,2628.5,2628.4,22.25137218]
[1723807592338,3.80445,2628.5,2628.4,19.83267218]
[1723807592906,7.6089,2628.5,2628.4,19.83267218]
[1723807593333,8.750208,2628.5,2628.4,19.83267218]
[1723807594039,7.6089,2628.5,2628.4,0.04280665]
[1723807594240,3.80432,2628.6,2627.9,9.7313]
[1723807594241,3.80492,2628.2,2627.9,9.7313]
[1723807594444,3.80492,2628.2,2627.9,10.70443]
[1723807594648,3.80492,2628.2,2628.0,0.04237227]
[1723807594823,3.80503,2628.1,2628.0,0.04237227]
[1723807595943,7.61006,2628.1,2628.0,0.04237227]
[1723807597411,3.8056,2627.7,2627.6,19.78986553]
[1723807597742,3.8056,2627.7,2627.4,21.9873]
[1723807597743,3.8056,2627.7,2627.4,2.2773]
[1723807597907,3.8056,2627.7,2627.5,2.19873]
[1723807599512,3.80584,2627.6,2627.4,2.2773]
[1723807599754,3.80589,2627.5,2627.4,2.2773]
[1723807600744,7.61133,2627.7,2627.4,2.2773]
[1723807600908,3.8041,2628.8,2627.4,2.2773]
[1723807600909,3.80547,2627.8,2627.4,4.48401655]
[1723807601116,3.80542,2627.9,2627.5,0.94831833]
[1723807601340,7.61084,2627.9,2627.5,0.94831833]
[1723807601541,3.80547,2627.8,2627.5,0.94831833]
[1723807601963,3.80562,2627.7,2627.5,0.94831833]
[1723807602167,3.80562,2627.7,2627.4,2.2773]
[1723807602574,3.80599,2627.5,2627.3,19.78986553]
[1723807602754,3.80599,2627.5,2627.2,2.3742]
[1723807604556,3.8057,2627.7,2627.2,6.18053]
[1723807604900,3.80575,2627.6,2627.2,6.18053]
[1723807606711,3.80575,2627.6,2627.2,2.3742]
[1723807607004,3.80598,2627.5,2627.2,2.3742]
[1723807607515,3.80647,2627.1,2627.0,19.78986553]
[1723807607638,3.80647,2627.1,2626.2,3.80775]
[1723807607639,3.80647,2627.1,2626.6,2.3551]
[1723807607843,7.61305,2627.1,2626.7,0.23551]
[1723807608183,3.80681,2626.9,2626.7,0.23551]
[1723807608378,3.80681,2626.9,2626.6,2.3551]
[1723807608678,7.6144,2626.6,2626.5,7.45]
[1723807608897,3.80749,2626.4,2626.3,19.78986553]
[1723807609180,3.80784,2626.2,2625.8,2.8631]
[1723807609477,3.80784,2626.2,2625.9,1.26412]
[1723807609681,3.80795,2626.1,2625.9,1.26412]
[1723807610252,3.80795,2626.1,2625.8,2.8631]
[1723807610451,3.80795,2626.1,2625.7,39.49986553]
[1723807610452,3.80836,2625.8,2625.7,39.49986553]
[1723807610651,3.80836,2625.8,2625.3,19.78986553]
[1723807610856,3.80836,2625.8,2625.4,2.74081655]
[1723807611491,3.80836,2625.8,2625.4,3.12201655]
[1723807611681,6.93567,2626.3,2625.4,3.12201655]
[1723807611682,3.80785,2626.2,2625.5,2.4819]
[1723807611842,3.80785,2626.2,2625.6,4.22285833]
[1723807612369,2.49235787,2626.1,2625.2,29.72176553]
[1723807612569,3.80903,2625.4,2625.2,27.23986553]
[1723807612755,3.80908,2625.3,2625.2,27.23986553]
[1723807613187,3.80875,2625.6,2624.6,2.4819]
[1723807613357,3.80903,2625.4,2624.7,3.80993]
[1723807613558,3.80877,2625.6,2624.9,2.4819]
[1723807613746,3.80905,2625.4,2624.9,2.4819]
[1723807614083,3.8091,2625.3,2624.9,2.4819]